[Event "23rd ETCC Women 2021"]
[Site "Catez"]
[Date "2021.11.19"]
[Round "6.42"]
[White "Matnadze, Ana"]
[Black "Kolaric, Spela"]
[Result "1-0"]
[ECO "D11"]
[WhiteElo "2418"]
[BlackElo "2178"]
[Annotator "ChessBase"]
[PlyCount "65"]
[EventDate "2021.11.08"]
[EventType "team-tourn"]
[EventCountry "SLO"]
[WhiteTeam "Spain"]
[BlackTeam "Slovenia"]
[WhiteTeamCountry "ESP"]
[BlackTeamCountry "SLO"]
[TimeControl "40/5400+30:1800+30"]

1. d4 {[%emt 0:00:03]} d5 {[%emt 0:00:34]} 2. Nf3 {[%emt 0:00:07]} Nf6 {
[%emt 0:00:24]} 3. g3 {[%emt 0:00:06]} Bf5 {[%emt 0:00:22]} 4. Bg2 {[%emt 0:00:
06]} c6 {[%emt 0:00:27]} 5. O-O {[%emt 0:00:08]} e6 {[%emt 0:00:46]} 6. c4 {
[%emt 0:00:11]} Nbd7 {[%emt 0:01:43]} 7. Nc3 {[%emt 0:00:24]} h6 {[%emt 0:00:
42]} 8. Qb3 {[%emt 0:01:50]} Qb6 {[%emt 0:01:44]} 9. c5 {[%emt 0:00:17]} Qxb3 {
[%emt 0:00:56]} 10. axb3 {[%emt 0:00:06]} a6 {[%emt 0:00:41]} 11. b4 {[%emt 0:
00:06]} Rc8 {[%emt 0:01:30]} 12. Nd2 {[%emt 0:00:16]} Be7 {[%emt 0:01:00]} 13.
f3 {[%emt 0:01:19]} g5 {[%emt 0:08:02]} 14. e4 {[%emt 0:00:26]} dxe4 {[%emt 0:
03:53]} 15. fxe4 {[%emt 0:00:09]} Bg6 {[%emt 0:01:08]} 16. Nc4 {[%emt 0:04:13]}
O-O {[%emt 0:04:13]} 17. Re1 {[%emt 0:01:42]} Rfe8 {[%emt 0:16:48]} 18. Bd2 {
[%emt 0:01:59]} Bf8 {[%emt 0:04:22]} 19. h4 {[%emt 0:01:54]} Nh7 {[%emt 0:11:
06]} 20. Bf3 {[%emt 0:04:02]} f6 {[%emt 0:08:48]} 21. d5 {[%emt 0:01:46]} Nb8 {
[%emt 0:13:04]} 22. dxe6 {[%emt 0:01:27]} Rcd8 {[%emt 0:00:46]} 23. h5 {
[%emt 0:00:21]} Bxh5 {[%emt 0:01:37]} 24. Bxh5 {[%emt 0:00:07]} Rxe6 {[%emt 0:
00:06]} 25. Be3 {[%emt 0:00:46]} Bg7 {[%emt 0:03:42]} 26. Rad1 {[%emt 0:00:29]}
Rf8 {[%emt 0:00:15]} 27. Nd6 {[%emt 0:00:40]} Re7 {[%emt 0:00:36]} 28. Nf5 {
[%emt 0:00:26]} Rc7 {[%emt 0:00:47]} 29. Rd6 {[%emt 0:00:48]} Rfc8 {[%emt 0:01:
20]} 30. Red1 {[%emt 0:00:48]} Nf8 {[%emt 0:00:54]} 31. Bd4 {[%emt 0:01:21]}
Nh7 {[%emt 0:00:45]} 32. Nxg7 {[%emt 0:00:17]} Kxg7 {[%emt 0:00:13]} 33. e5 {
[%emt 0:00:10]} 1-0

[Event "23rd ETCC Women 2021"]
[Site "Catez"]
[Date "2021.11.19"]
[Round "6.45"]
[White "Novkovic, Julia"]
[Black "Goossens, Hanne"]
[Result "1/2-1/2"]
[ECO "B52"]
[WhiteElo "2082"]
[BlackElo "2126"]
[Annotator "ChessBase"]
[PlyCount "73"]
[EventDate "2021.11.08"]
[EventType "team-tourn"]
[EventCountry "SLO"]
[WhiteTeam "Austria"]
[BlackTeam "Belgium"]
[WhiteTeamCountry "AUT"]
[BlackTeamCountry "BEL"]
[TimeControl "40/5400+30:1800+30"]

1. e4 {[%emt 0:00:06]} c5 {[%emt 0:00:13]} 2. Nf3 {[%emt 0:00:05]} d6 {[%emt 0:
00:07]} 3. Bb5+ {[%emt 0:00:38]} Bd7 {[%emt 0:00:17]} 4. Bxd7+ {[%emt 0:00:10]}
Nxd7 {[%emt 0:00:08]} 5. O-O {[%emt 0:01:05]} Ngf6 {[%emt 0:00:17]} 6. Re1 {
[%emt 0:00:15]} e6 {[%emt 0:00:41]} 7. c4 {[%emt 0:02:47]} Be7 {[%emt 0:00:49]}
8. d4 {[%emt 0:01:42]} cxd4 {[%emt 0:00:31]} 9. Nxd4 {[%emt 0:00:22]} O-O {
[%emt 0:01:10]} 10. Nc3 {[%emt 0:10:50]} Qa5 {[%emt 0:04:51]} 11. Nde2 {
[%emt 0:08:40]} Rac8 {[%emt 0:05:54]} 12. b3 {[%emt 0:00:20]} a6 {[%emt 0:02:
00]} 13. Bd2 {[%emt 0:02:02]} Qc7 {[%emt 0:04:19]} 14. Bf4 {[%emt 0:04:25]} Qb8
{[%emt 0:07:22]} 15. a4 {[%emt 0:02:38]} Rfd8 {[%emt 0:11:31]} 16. Rc1 {
[%emt 0:01:51]} Ne5 {[%emt 0:05:37]} 17. Ng3 {[%emt 0:05:48]} b6 {[%emt 0:05:
43]} 18. f3 {[%emt 0:06:52]} Nfd7 {[%emt 0:03:22]} 19. Re2 {[%emt 0:04:34]} Nc5
{[%emt 0:07:33]} 20. Rd2 {[%emt 0:00:14]} Rc7 {[%emt 0:01:49]} 21. Nf1 {
[%emt 0:03:35]} Rdc8 {[%emt 0:02:57]} 22. Rb1 {[%emt 0:05:47]} Ncd7 {[%emt 0:
02:58]} 23. Ne3 {[%emt 0:02:02]} Bf8 {[%emt 0:01:04]} 24. Bg3 {[%emt 0:05:09]}
Qb7 {[%emt 0:02:21]} 25. h4 {[%emt 0:05:21]} Qa7 {[%emt 0:10:45]} 26. Bf2 {
[%emt 0:00:52]} Qb7 {[%emt 0:00:42]} 27. h5 {[%emt 0:02:58]} h6 {[%emt 0:00:44]
} 28. f4 {[%emt 0:02:28]} Nc6 {[%emt 0:00:20]} 29. Ng4 {[%emt 0:03:14]} Kh8 {
[%emt 0:04:34]} 30. Bh4 {[%emt 0:03:23]} Nb4 {[%emt 0:02:22]} 31. Bf2 {[%emt 0:
05:22]} Be7 {[%emt 0:02:59]} 32. Bd4 {[%emt 0:02:03]} Nc6 {[%emt 0:01:51]} 33.
Be3 {[%emt 0:01:46]} Nf6 {[%emt 0:02:28]} 34. Nf2 {[%emt 0:01:49]} Nb4 {
[%emt 0:01:50]} 35. Bd4 {[%emt 0:01:32]} Nc6 {[%emt 0:01:24]} 36. Be3 {[%emt 0:
00:19]} Nb4 {[%emt 0:00:09]} 37. Bd4 {[%emt 0:00:16]} 1/2-1/2

[Event "23rd ETCC Women 2021"]
[Site "Catez"]
[Date "2021.11.19"]
[Round "6.48"]
[White "Dierckens, Sarah"]
[Black "Mayrhuber, Nikola"]
[Result "0-1"]
[ECO "C13"]
[WhiteElo "1795"]
[BlackElo "2091"]
[Annotator "ChessBase"]
[PlyCount "88"]
[EventDate "2021.11.08"]
[EventType "team-tourn"]
[EventCountry "SLO"]
[WhiteTeam "Belgium"]
[BlackTeam "Austria"]
[WhiteTeamCountry "BEL"]
[BlackTeamCountry "AUT"]
[TimeControl "40/5400+30:1800+30"]

1. e4 {[%emt 0:00:03]} e6 {[%emt 0:00:06]} 2. d4 {[%emt 0:00:04]} d5 {[%emt 0:
00:04]} 3. Nc3 {[%emt 0:00:19]} Nf6 {[%emt 0:00:13]} 4. Bg5 {[%emt 0:00:08]}
dxe4 {[%emt 0:00:15]} 5. Nxe4 {[%emt 0:00:25]} Be7 {[%emt 0:00:11]} 6. Bxf6 {
[%emt 0:01:02]} gxf6 {[%emt 0:00:14]} 7. Nf3 {[%emt 0:01:14]} f5 {[%emt 0:00:
08]} 8. Ned2 {[%emt 0:03:46]} c5 {[%emt 0:05:59]} 9. c3 {[%emt 0:03:08]} Nc6 {
[%emt 0:11:17]} 10. Bb5 {[%emt 0:05:33]} Bd7 {[%emt 0:08:56]} 11. Nb3 {[%emt 0:
03:32]} cxd4 {[%emt 0:07:37]} 12. Nbxd4 {[%emt 0:00:36]} Qb6 {[%emt 0:05:16]}
13. Qe2 {[%emt 0:03:10]} Rg8 {[%emt 0:09:23]} 14. O-O-O {[%emt 0:08:43]} O-O-O
{[%emt 0:08:00]} 15. Bxc6 {[%emt 0:07:09]} Bxc6 {[%emt 0:04:25]} 16. Nxc6 {
[%emt 0:08:38]} bxc6 {[%emt 0:07:10]} 17. Nd4 {[%emt 0:03:51]} Bg5+ {[%emt 0:
03:36]} 18. Kb1 {[%emt 0:03:34]} Kb7 {[%emt 0:02:00]} 19. Qe5 {[%emt 0:10:12]}
Rd5 {[%emt 0:01:35]} 20. Qe2 {[%emt 0:02:49]} Bf6 {[%emt 0:01:22]} 21. Qh5 {
[%emt 0:03:51]} Rg7 {[%emt 0:02:00]} 22. Qh6 {[%emt 0:02:55]} Bxd4 {[%emt 0:05:
34]} 23. Rxd4 {[%emt 0:02:55]} Rxd4 {[%emt 0:03:06]} 24. Qxg7 {[%emt 0:04:19]}
Rd2 {[%emt 0:00:07]} 25. c4 {[%emt 0:00:12]} Qxf2 {[%emt 0:05:02]} 26. Qxf7+ {
[%emt 0:01:37]} Kb6 {[%emt 0:01:53]} 27. Qf6 {[%emt 0:01:32]} Qxg2 {[%emt 0:04:
58]} 28. Rc1 {[%emt 0:00:11]} Qe4+ {[%emt 0:02:06]} 29. Ka1 {[%emt 0:00:09]}
Qd4 {[%emt 0:00:51]} 30. Qxd4+ {[%emt 0:02:00]} Rxd4 {[%emt 0:00:01]} 31. b3 {
[%emt 0:01:59]} e5 {[%emt 0:00:52]} 32. Re1 {[%emt 0:01:13]} e4 {[%emt 0:00:08]
} 33. Kb1 {[%emt 0:05:25]} f4 {[%emt 0:01:17]} 34. Kc2 {[%emt 0:00:09]} e3 {
[%emt 0:00:20]} 35. Re2 {[%emt 0:01:43]} Kc5 {[%emt 0:00:48]} 36. Kc3 {[%emt 0:
00:24]} Rd1 {[%emt 0:00:30]} 37. Kc2 {[%emt 0:01:54]} Rf1 {[%emt 0:00:35]} 38.
Kd3 {[%emt 0:01:06]} Kb4 {[%emt 0:00:33]} 39. Kd4 {[%emt 0:04:27]} Rf2 {
[%emt 0:00:34]} 40. Kd3 {[%emt 0:02:34]} Rxe2 {[%emt 0:00:27]} 41. Kxe2 {
[%emt 0:30:06]} Kc3 {[%emt 0:30:13]} 42. h4 {[%emt 0:00:57]} h5 {[%emt 0:00:18]
} 43. Ke1 {[%emt 0:00:31]} f3 {[%emt 0:00:17]} 44. c5 {[%emt 0:00:17]} a5 {
[%emt 0:00:30]} 0-1

[Event "23rd ETCC Women 2021"]
[Site "Catez"]
[Date "2021.11.19"]
[Round "6.51"]
[White "Janzelj, Lara"]
[Black "Johannsdottir, Johanna Bjorg"]
[Result "1-0"]
[ECO "E20"]
[WhiteElo "2150"]
[BlackElo "1952"]
[Annotator "ChessBase"]
[PlyCount "95"]
[EventDate "2021.11.08"]
[EventType "team-tourn"]
[EventCountry "SLO"]
[WhiteTeam "Slovenia"]
[BlackTeam "Iceland"]
[WhiteTeamCountry "SLO"]
[BlackTeamCountry "ISL"]
[TimeControl "40/5400+30:1800+30"]

1. d4 {[%emt 0:00:03]} Nf6 {[%emt 0:00:12]} 2. c4 {[%emt 0:00:07]} e6 {[%emt 0:
00:05]} 3. Nc3 {[%emt 0:00:17]} Bb4 {[%emt 0:00:27]} 4. f3 {[%emt 0:00:14]} b6
{[%emt 0:01:43]} 5. e4 {[%emt 0:04:16]} O-O {[%emt 0:01:13]} 6. Bd3 {[%emt 0:
01:07]} c5 {[%emt 0:03:01]} 7. d5 {[%emt 0:02:06]} exd5 {[%emt 0:01:26]} 8.
cxd5 {[%emt 0:01:44]} Qc7 {[%emt 0:02:25]} 9. a3 {[%emt 0:09:27]} Bxc3+ {
[%emt 0:10:34]} 10. bxc3 {[%emt 0:00:04]} c4 {[%emt 0:03:44]} 11. Bc2 {[%emt 0:
00:16]} Qe5 {[%emt 0:03:00]} 12. Ne2 {[%emt 0:01:53]} Re8 {[%emt 0:01:00]} 13.
Bf4 {[%emt 0:02:03]} Qe7 {[%emt 0:07:31]} 14. O-O {[%emt 0:04:30]} Nh5 {
[%emt 0:02:18]} 15. Be3 {[%emt 0:00:57]} f5 {[%emt 0:01:44]} 16. Nd4 {[%emt 0:
05:38]} d6 {[%emt 0:05:47]} 17. Qe2 {[%emt 0:05:46]} f4 {[%emt 0:03:28]} 18.
Bf2 {[%emt 0:01:18]} Ba6 {[%emt 0:02:06]} 19. Ne6 {[%emt 0:04:56]} Bc8 {
[%emt 0:04:45]} 20. Ba4 {[%emt 0:01:57]} Bxe6 {[%emt 0:08:02]} 21. Bxe8 {
[%emt 0:00:33]} Qxe8 {[%emt 0:00:06]} 22. dxe6 {[%emt 0:00:04]} Qxe6 {[%emt 0:
00:20]} 23. Rfd1 {[%emt 0:00:33]} Nc6 {[%emt 0:00:40]} 24. Bh4 {[%emt 0:03:51]}
Ne5 {[%emt 0:01:35]} 25. Rd5 {[%emt 0:02:31]} Nf6 {[%emt 0:02:20]} 26. Bxf6 {
[%emt 0:00:32]} Qxf6 {[%emt 0:00:06]} 27. Qa2 {[%emt 0:03:12]} Kh8 {[%emt 0:04:
26]} 28. Rad1 {[%emt 0:01:49]} Rd8 {[%emt 0:00:05]} 29. a4 {[%emt 0:00:28]} h5
{[%emt 0:03:31]} 30. Qf2 {[%emt 0:09:28]} h4 {[%emt 0:02:01]} 31. Qd4 {[%emt 0:
00:45]} Rf8 {[%emt 0:01:52]} 32. Rxd6 {[%emt 0:06:40]} Qg5 {[%emt 0:00:19]} 33.
Qf2 {[%emt 0:01:07]} Nd3 {[%emt 0:03:18]} 34. Qd4 {[%emt 0:01:34]} h3 {[%emt 0:
01:10]} 35. Rd2 {[%emt 0:01:37]} Ne1 {[%emt 0:03:41]} 36. Qf2 {[%emt 0:01:18]}
Nxg2 {[%emt 0:03:42]} 37. R2d5 {[%emt 0:00:58]} Qe7 {[%emt 0:00:28]} 38. Rh5+ {
[%emt 0:06:34]} Kg8 {[%emt 0:00:12]} 39. Qd4 {[%emt 0:01:24]} Ne3 {[%emt 0:01:
15]} 40. Kf2 {[%emt 0:05:07]} Qe8 {[%emt 0:03:06]} 41. Qe5 {[%emt 0:34:41]} Qc8
{[%emt 0:40:08]} 42. Rg5 {[%emt 0:04:42]} Rf7 {[%emt 0:00:48]} 43. Re6 {
[%emt 0:02:24]} Nd1+ {[%emt 0:00:00]} 44. Ke1 {[%emt 0:00:00]} Qd7 {[%emt 0:00:
00]} 45. Re8+ {[%emt 0:00:00]} Rf8 {[%emt 0:00:00]} 46. Rxf8+ {[%emt 0:00:00]}
Kxf8 {[%emt 0:00:00]} 47. Qxf4+ {[%emt 0:00:00]} Kg8 {[%emt 0:00:00]} 48. Rd5 {
[%emt 0:00:00]} 1-0

[Event "23rd ETCC Women 2021"]
[Site "Catez"]
[Date "2021.11.19"]
[Round "6.54"]
[White "Bejatovic, Bojana"]
[Black "Caglar, Sila"]
[Result "0-1"]
[ECO "D00"]
[WhiteElo "2031"]
[BlackElo "2250"]
[Annotator "ChessBase"]
[PlyCount "108"]
[EventDate "2021.11.08"]
[EventType "team-tourn"]
[EventCountry "SLO"]
[WhiteTeam "Macedonia"]
[BlackTeam "Turkey"]
[WhiteTeamCountry "MKD"]
[BlackTeamCountry "TUR"]
[TimeControl "40/5400+30:1800+30"]

1. d4 {[%emt 0:00:03]} Nf6 {[%emt 0:00:10]} 2. Nc3 {[%emt 0:00:08]} d5 {
[%emt 0:00:14]} 3. Bf4 {[%emt 0:00:04]} g6 {[%emt 0:01:15]} 4. e3 {[%emt 0:00:
28]} Bg7 {[%emt 0:00:14]} 5. h4 {[%emt 0:00:18]} h6 {[%emt 0:03:47]} 6. Nf3 {
[%emt 0:02:59]} c5 {[%emt 0:07:13]} 7. Nb5 {[%emt 0:13:47]} Na6 {[%emt 0:00:21]
} 8. c3 {[%emt 0:00:11]} Bd7 {[%emt 0:11:38]} 9. Ne5 {[%emt 0:02:23]} c4 {
[%emt 0:05:00]} 10. a4 {[%emt 0:03:52]} Bxb5 {[%emt 0:03:07]} 11. axb5 {
[%emt 0:00:04]} Nc7 {[%emt 0:00:08]} 12. b6 {[%emt 0:08:14]} Ne6 {[%emt 0:17:
21]} 13. Qa4+ {[%emt 0:07:29]} Nd7 {[%emt 0:03:20]} 14. bxa7 {[%emt 0:05:27]}
Bxe5 {[%emt 0:03:41]} 15. Bxe5 {[%emt 0:00:22]} f6 {[%emt 0:07:04]} 16. Bg3 {
[%emt 0:02:47]} Qb6 {[%emt 0:03:59]} 17. Ra2 {[%emt 0:06:58]} f5 {[%emt 0:08:
57]} 18. Be2 {[%emt 0:01:38]} Nd8 {[%emt 0:00:45]} 19. Be5 {[%emt 0:13:17]} Rg8
{[%emt 0:02:31]} 20. Bf4 {[%emt 0:17:56]} h5 {[%emt 0:05:46]} 21. O-O {[%emt 0:
05:09]} Nc6 {[%emt 0:01:31]} 22. Qc2 {[%emt 0:03:04]} Nf6 {[%emt 0:02:14]} 23.
Rfa1 {[%emt 0:00:42]} Rxa7 {[%emt 0:01:53]} 24. Rxa7 {[%emt 0:00:52]} Nxa7 {
[%emt 0:00:02]} 25. Be5 {[%emt 0:01:20]} Kf7 {[%emt 0:01:41]} 26. Bf3 {[%emt 0:
01:50]} e6 {[%emt 0:02:57]} 27. Bc7 {[%emt 0:01:51]} Qxc7 {[%emt 0:00:05]} 28.
Rxa7 Qb6 {[%emt 0:01:10]} 29. Qa4 {[%emt 0:00:01]} Re8 {[%emt 0:04:16]} 30. Bd1
{[%emt 0:01:01]} Qxb2 {[%emt 0:00:42]} 31. Qa6 {[%emt 0:01:10]} Re7 {[%emt 0:
00:04]} 32. Qa1 {[%emt 0:00:02]} Qd2 {[%emt 0:02:12]} 33. Bf3 {[%emt 0:00:18]}
Qc2 {[%emt 0:00:47]} 34. Qa5 {[%emt 0:00:55]} Qb1+ {[%emt 0:00:38]} 35. Kh2 {
[%emt 0:00:01]} b6 {[%emt 0:00:40]} 36. Rxe7+ {[%emt 0:00:18]} Kxe7 {[%emt 0:
00:00]} 37. Qa7+ {[%emt 0:00:00]} Nd7 {[%emt 0:00:13]} 38. Qa3+ {[%emt 0:00:20]
} Kf7 {[%emt 0:00:42]} 39. Qd6 {[%emt 0:00:22]} Qb5 {[%emt 0:00:41]} 40. Qf4 {
[%emt 0:00:25]} Qc6 {[%emt 0:00:54]} 41. Bd1 {[%emt 0:31:51]} b5 {[%emt 0:05:
16]} 42. f3 {[%emt 0:00:00]} Qb7 {[%emt 0:01:44]} 43. Kh3 {[%emt 0:00:00]} Qb8
{[%emt 0:08:07]} 44. Qh6 {[%emt 0:00:00]} Nf6 {[%emt 0:00:18]} 45. g4 {[%emt 0:
00:00]} hxg4+ {[%emt 0:00:28]} 46. fxg4 {[%emt 0:00:00]} fxg4+ {[%emt 0:00:12]}
47. Bxg4 {[%emt 0:00:00]} Ne4 {[%emt 0:00:32]} 48. Bxe6+ {[%emt 0:00:00]} Kxe6
{[%emt 0:00:06]} 49. Qxg6+ {[%emt 0:00:00]} Nf6 {[%emt 0:02:50]} 50. e4 {
[%emt 0:00:00]} Qf4 {[%emt 0:01:05]} 51. e5 {[%emt 0:00:00]} Qf5+ {[%emt 0:01:
13]} 52. Qxf5+ {[%emt 0:00:00]} Kxf5 {[%emt 0:00:01]} 53. exf6 {[%emt 0:00:00]}
Kxf6 {[%emt 0:00:02]} 54. Kg4 {[%emt 0:00:00]} b4 {[%emt 0:00:05]} 0-1

[Event "23rd ETCC Women 2021"]
[Site "Catez"]
[Date "2021.11.19"]
[Round "6.55"]
[White "Kocyigit, Buse Naz"]
[Black "Trajkovska, Sanja"]
[Result "1/2-1/2"]
[ECO "D07"]
[WhiteElo "2034"]
[BlackElo "1960"]
[Annotator "ChessBase"]
[PlyCount "60"]
[EventDate "2021.11.08"]
[EventType "team-tourn"]
[EventCountry "SLO"]
[WhiteTeam "Turkey"]
[BlackTeam "Macedonia"]
[WhiteTeamCountry "TUR"]
[BlackTeamCountry "MKD"]
[TimeControl "40/5400+30:1800+30"]

1. Nf3 {[%emt 0:00:02]} d5 {[%emt 0:00:08]} 2. d4 {[%emt 0:00:06]} Nf6 {
[%emt 0:00:04]} 3. c4 {[%emt 0:00:04]} dxc4 {[%emt 0:00:03]} 4. Nc3 {[%emt 0:
03:14]} Nc6 {[%emt 0:00:08]} 5. e4 {[%emt 0:04:43]} Bg4 {[%emt 0:00:40]} 6. Be3
{[%emt 0:00:51]} e6 {[%emt 0:02:20]} 7. Bxc4 {[%emt 0:09:03]} Bxf3 {[%emt 0:03:
22]} 8. gxf3 {[%emt 0:00:56]} a6 {[%emt 0:07:59]} 9. Qd2 {[%emt 0:13:16]} Bb4 {
[%emt 0:07:07]} 10. Rg1 {[%emt 0:03:08]} Na5 {[%emt 0:04:41]} 11. Be2 {[%emt 0:
08:53]} Rg8 {[%emt 0:16:22]} 12. Qc2 {[%emt 0:05:04]} Nd7 {[%emt 0:07:04]} 13.
a3 {[%emt 0:03:53]} Bd6 {[%emt 0:07:08]} 14. e5 {[%emt 0:05:36]} Be7 {[%emt 0:
01:08]} 15. Qxh7 {[%emt 0:01:03]} Rf8 {[%emt 0:06:04]} 16. Rxg7 {[%emt 0:00:47]
} c6 {[%emt 0:07:12]} 17. f4 {[%emt 0:05:48]} Qb6 {[%emt 0:04:27]} 18. Qc2 {
[%emt 0:06:50]} Nb3 {[%emt 0:06:35]} 19. Rd1 {[%emt 0:00:44]} O-O-O {[%emt 0:
02:13]} 20. d5 {[%emt 0:03:18]} Bc5 {[%emt 0:00:22]} 21. dxc6 {[%emt 0:03:36]}
bxc6 {[%emt 0:01:06]} 22. Bxc5 {[%emt 0:03:12]} Ndxc5 {[%emt 0:00:34]} 23.
Rxd8+ {[%emt 0:03:09]} Rxd8 {[%emt 0:00:35]} 24. Ne4 {[%emt 0:07:55]} Qa5+ {
[%emt 0:05:18]} 25. Nc3 {[%emt 0:00:48]} Qb6 {[%emt 0:01:42]} 26. Ne4 {[%emt 0:
00:31]} Qa5+ {[%emt 0:00:19]} 27. Nc3 {[%emt 0:00:10]} Qb6 {[%emt 0:00:18]} 28.
Ne4 {[%emt 0:01:46]} Qa5+ {[%emt 0:00:04]} 29. Nc3 {[%emt 0:00:07]} Qb6 {
[%emt 0:00:04]} 30. Ne4 {[%emt 0:00:24]} Qa5+ {[%emt 0:00:04]} 1/2-1/2

[Event "23rd ETCC Women 2021"]
[Site "Catez"]
[Date "2021.11.19"]
[Round "6.56"]
[White "Manova, Ivana"]
[Black "Aydin, Gulenay"]
[Result "1-0"]
[ECO "B13"]
[WhiteElo "1809"]
[BlackElo "2114"]
[Annotator "ChessBase"]
[PlyCount "149"]
[EventDate "2021.11.08"]
[EventType "team-tourn"]
[EventCountry "SLO"]
[WhiteTeam "Macedonia"]
[BlackTeam "Turkey"]
[WhiteTeamCountry "MKD"]
[BlackTeamCountry "TUR"]
[TimeControl "40/5400+30:1800+30"]

1. e4 {[%emt 0:00:10]} c6 {[%emt 0:00:06]} 2. d4 {[%emt 0:00:11]} d5 {[%emt 0:
00:06]} 3. exd5 {[%emt 0:00:17]} cxd5 {[%emt 0:00:09]} 4. Bd3 {[%emt 0:00:11]}
Nc6 {[%emt 0:00:10]} 5. c3 {[%emt 0:00:06]} Nf6 {[%emt 0:00:42]} 6. Bf4 {
[%emt 0:00:43]} Bg4 {[%emt 0:04:06]} 7. Qb3 {[%emt 0:00:40]} Qd7 {[%emt 0:03:
22]} 8. Nd2 {[%emt 0:03:43]} e6 {[%emt 0:04:09]} 9. Ngf3 {[%emt 0:00:45]} Be7 {
[%emt 0:10:36]} 10. Ne5 {[%emt 0:07:54]} Qc8 {[%emt 0:03:20]} 11. Qc2 {[%emt 0:
08:41]} Bh5 {[%emt 0:02:48]} 12. O-O {[%emt 0:06:05]} Bg6 {[%emt 0:05:02]} 13.
Rae1 {[%emt 0:06:15]} O-O {[%emt 0:10:44]} 14. Nxg6 {[%emt 0:02:34]} hxg6 {
[%emt 0:00:09]} 15. Nf3 {[%emt 0:09:35]} a6 {[%emt 0:04:46]} 16. Ng5 {[%emt 0:
09:02]} Nh7 {[%emt 0:11:36]} 17. Nxh7 {[%emt 0:05:23]} Kxh7 {[%emt 0:00:02]}
18. Re3 {[%emt 0:00:43]} Kg8 {[%emt 0:04:09]} 19. Rfe1 {[%emt 0:15:48]} Qd7 {
[%emt 0:06:15]} 20. Rh3 {[%emt 0:08:11]} f5 {[%emt 0:08:30]} 21. Qd2 {[%emt 0:
10:27]} Rae8 {[%emt 0:03:15]} 22. Rg3 {[%emt 0:03:23]} Kf7 {[%emt 0:00:49]} 23.
Bg5 {[%emt 0:00:21]} Bd6 {[%emt 0:02:45]} 24. Bf4 {[%emt 0:00:43]} Be7 {
[%emt 0:01:16]} 25. Bg5 {[%emt 0:00:32]} Qd8 {[%emt 0:03:38]} 26. f4 {[%emt 0:
00:31]} Rh8 {[%emt 0:02:51]} 27. Qe3 {[%emt 0:00:20]} Bf6 {[%emt 0:01:18]} 28.
a4 {[%emt 0:00:40]} Qa5 {[%emt 0:03:46]} 29. Qd2 {[%emt 0:00:33]} Qxa4 {
[%emt 0:01:07]} 30. h3 {[%emt 0:00:28]} Qa5 {[%emt 0:00:32]} 31. Qc1 {[%emt 0:
00:32]} Qc7 {[%emt 0:01:50]} 32. Kh2 {[%emt 0:00:29]} Na5 {[%emt 0:01:38]} 33.
Qc2 {[%emt 0:00:31]} Nc4 {[%emt 0:00:34]} 34. Qe2 {[%emt 0:00:30]} Nd6 {
[%emt 0:00:19]} 35. Bxf6 {[%emt 0:00:25]} gxf6 {[%emt 0:00:14]} 36. Re3 {
[%emt 0:00:08]} Ne4 {[%emt 0:01:01]} 37. g3 {[%emt 0:00:55]} Re7 {[%emt 0:00:
34]} 38. Kg2 {[%emt 0:00:30]} Kg8 {[%emt 0:00:43]} 39. c4 {[%emt 0:00:31]} Kg7
{[%emt 0:00:29]} 40. c5 {[%emt 0:00:20]} Qa5 {[%emt 0:00:24]} 41. Rd1 {[%emt 0:
30:33]} Qc7 {[%emt 0:08:26]} 42. Bc2 {[%emt 0:00:00]} Rd8 {[%emt 0:11:08]} 43.
b4 {[%emt 0:00:00]} e5 {[%emt 0:02:54]} 44. Qf3 {[%emt 0:00:00]} a5 {[%emt 0:
03:53]} 45. fxe5 {[%emt 0:00:00]} fxe5 {[%emt 0:00:15]} 46. g4 {[%emt 0:00:00]}
f4 {[%emt 0:02:06]} 47. Rxe4 {[%emt 0:00:00]} dxe4 {[%emt 0:00:08]} 48. Qxe4 {
[%emt 0:00:00]} Qc6 {[%emt 0:03:20]} 49. d5 {[%emt 0:00:00]} Qf6 {[%emt 0:00:
01]} 50. d6 {[%emt 0:00:00]} Rf7 {[%emt 0:00:29]} 51. Kf3 {[%emt 0:00:00]} Qh4
{[%emt 0:02:17]} 52. Qxg6+ {[%emt 0:00:41]} Kf8 {[%emt 0:00:03]} 53. Ke4 {
[%emt 0:05:18]} Qxh3 {[%emt 0:01:28]} 54. Re1 {[%emt 0:00:39]} axb4 {[%emt 0:
00:34]} 55. Ba4 {[%emt 0:00:26]} f3 {[%emt 0:00:33]} 56. Bb3 {[%emt 0:00:23]}
Rf4+ {[%emt 0:00:31]} 57. Kxe5 {[%emt 0:00:27]} Qxg4 {[%emt 0:00:29]} 58. Qh6+
{[%emt 0:00:27]} Ke8 {[%emt 0:00:29]} 59. Qxf4 {[%emt 0:00:40]} Qxf4+ {[%emt 0:
00:29]} 60. Kxf4+ {[%emt 0:00:02]} Kd7 {[%emt 0:00:00]} 61. Ba4+ {[%emt 0:00:
28]} Kc8 {[%emt 0:00:10]} 62. Kxf3 {[%emt 0:00:53]} b6 {[%emt 0:00:54]} 63. Rc1
{[%emt 0:00:35]} Kb8 {[%emt 0:00:38]} 64. Ke4 {[%emt 0:00:16]} bxc5 {[%emt 0:
00:26]} 65. Kd5 {[%emt 0:00:14]} Rh8 {[%emt 0:00:37]} 66. Rxc5 {[%emt 0:00:22]}
Rh5+ {[%emt 0:00:34]} 67. Kc6 {[%emt 0:00:14]} Rh6 {[%emt 0:00:23]} 68. Rb5+ {
[%emt 0:00:12]} Kc8 {[%emt 0:00:04]} 69. Rxb4 {[%emt 0:00:06]} Rh7 {[%emt 0:00:
25]} 70. Rf4 {[%emt 0:00:34]} Rh8 {[%emt 0:00:19]} 71. Bb5 {[%emt 0:00:44]} Rg8
{[%emt 0:00:18]} 72. Bc4 {[%emt 0:00:19]} Rh8 {[%emt 0:00:14]} 73. Be6+ {
[%emt 0:00:08]} Kb8 {[%emt 0:00:14]} 74. Rb4+ {[%emt 0:00:20]} Ka8 {[%emt 0:00:
10]} 75. Kc7 {[%emt 0:00:19]} 1-0